bitfinex-derivatives/quotes_BNBF0:USTF0_20241225
["timestamp","ask_amount","ask_price","bid_price","bid_amount"]
[1735122709989,0.25839138,712.06,710.75,0.916]
[1735122711090,1.118,712.07,710.75,0.916]
[1735122711484,1.118,712.07,710.66,1.02887276]
[1735122712195,1.118,712.07,710.34,1.02887276]
[1735122712386,0.25846527,712.06,710.34,1.02887276]
[1735122712691,0.25846527,712.06,710.35,0.919]
[1735122714489,0.25846527,712.06,710.43,1.03003003]
[1735122714894,1.118,712.07,710.43,1.03003003]
[1735122715195,0.25850194,712.06,710.43,1.03003003]
[1735122715494,0.25850194,712.05,710.43,1.03003003]
[1735122715689,1.118,712.07,710.4,1.03003003]
[1735122715690,0.25850194,712.04,710.4,1.03003003]
[1735122715891,0.25850194,712.03,710.4,1.03003003]
[1735122716191,0.25850194,712.02,710.4,1.03003003]
[1735122716495,0.25850194,712.01,710.4,1.03003003]
[1735122716687,0.25850194,712.0,710.4,1.03003003]
[1735122716891,0.25850194,711.99,710.44,1.03003003]
[1735122717091,0.25850194,711.98,710.44,1.03003003]
[1735122717288,0.25850194,711.97,710.44,1.03003003]
[1735122717491,1.118,712.07,710.44,1.03003003]
[1735122717492,0.25850194,711.96,710.44,1.03003003]
[1735122717692,0.25848346,711.96,710.44,1.03003003]
[1735122717893,0.25848346,711.95,710.53,1.03003003]
[1735122718088,0.25848346,712.06,710.53,1.03003003]
[1735122718292,0.25848346,712.05,710.53,1.03003003]
[1735122718487,0.25848346,712.04,710.53,1.03003003]
[1735122718794,0.25848346,712.03,710.53,1.03003003]
[1735122719093,0.25848346,712.02,710.6,1.03003003]
[1735122719291,0.25848346,712.01,710.6,1.03003003]
[1735122719494,0.25848346,712.0,710.6,1.03003003]
[1735122719793,0.28086731,712.08,710.6,1.03003003]
[1735122719994,0.25846335,712.07,710.6,1.03003003]
[1735122720295,0.28086731,712.08,710.5,1.03003003]
[1735122720494,0.25845803,712.07,710.5,1.03003003]
[1735122720691,0.895,712.07,710.5,1.03003003]
[1735122721095,0.25843342,712.06,710.47,1.03003003]
[1735122721295,0.895,712.07,710.47,1.03003003]
[1735122721695,1.747,712.07,710.47,1.03003003]
[1735122722196,1.747,712.07,710.66,1.03003003]
[1735122723197,1.747,712.07,710.72,1.03003003]
[1735122724298,1.747,712.07,710.89,1.03003003]
[1735122725600,1.747,712.07,710.84,1.03003003]
[1735122726399,1.747,712.07,710.85,1.03003003]
[1735122728501,1.747,712.07,710.81,1.03003003]
[1735122729000,1.747,712.07,710.81,2.03503003]
[1735122729302,1.747,712.07,710.85,1.03003003]
[1735122731197,1.747,712.07,710.86,1.03003003]
[1735122731998,1.747,712.07,710.81,1.005]
[1735122731999,1.747,712.07,710.84,1.03003003]
[1735122733906,1.747,712.07,710.81,1.005]
[1735122734900,0.28087915,712.05,710.81,1.005]
[1735122736200,1.31987915,712.05,710.81,1.005]
[1735122736399,0.25847226,712.04,710.81,1.005]
[1735122738307,1.31987915,712.05,710.81,1.005]
[1735122738308,0.25843753,712.03,710.81,1.005]
[1735122738609,0.25843753,712.02,710.81,1.005]
[1735122738807,0.25843753,712.01,710.81,1.005]
[1735122739002,0.25843753,712.0,710.81,1.005]
[1735122739204,1.002,712.02,710.81,1.005]
[1735122741208,0.25839759,712.01,710.81,1.005]
[1735122741608,1.002,712.02,710.81,1.005]
[1735122742510,1.002,712.02,710.85,1.03003003]
[1735122743412,1.002,712.02,710.81,1.03003003]
[1735122744113,1.002,712.02,710.81,2.06903003]
[1735122744312,1.002,712.02,710.87,1.03003003]
[1735122745911,1.002,712.02,710.82,1.03003003]
[1735122746816,1.002,712.02,710.81,2.06903003]
[1735122747611,1.002,712.02,710.82,1.03003003]
[1735122748815,1.002,712.02,710.81,1.039]
[1735122749513,1.723,712.02,710.81,1.039]
[1735122752718,0.25846044,712.01,710.81,1.039]
[1735122754325,0.53937108,712.0,710.81,1.039]
[1735122754524,0.25847221,711.99,710.81,1.039]
[1735122755223,0.28089887,712.0,710.81,1.039]
[1735122755424,0.25846215,711.99,710.81,1.039]
[1735122756419,0.28089887,712.0,710.81,1.039]
[1735122757127,0.25846215,711.99,710.81,1.039]
[1735122759425,0.25846834,711.98,710.81,1.039]
[1735122759629,0.28089887,712.0,710.81,1.039]
[1735122759828,0.25853906,711.97,710.81,1.039]
[1735122761529,0.25853566,711.96,710.81,1.039]
[1735122764126,1.37653566,711.96,710.81,1.039]
[1735122764331,0.25853566,711.95,710.81,1.039]
[1735122764830,0.25853566,711.94,710.81,1.039]
[1735122765030,0.25853566,711.93,710.81,1.039]
[1735122765230,0.25853566,711.92,710.81,1.039]
[1735122765428,0.25853566,711.91,710.81,1.039]
[1735122765626,0.25853566,711.9,710.81,1.039]
[1735122765831,0.25853566,711.89,710.81,1.039]
[1735122766029,0.25853566,711.88,710.81,1.039]
[1735122766327,1.118,711.96,710.81,1.039]
[1735122766531,0.25853302,711.95,710.81,1.039]
[1735122767329,0.25849757,711.94,710.81,1.039]
[1735122767530,0.25849757,711.93,710.81,1.039]
[1735122767734,0.25849757,711.92,710.81,1.039]
[1735122767932,0.25849757,711.95,710.81,1.039]
[1735122768130,0.25849757,711.94,710.81,1.039]
[1735122768327,0.25849757,711.93,710.81,1.039]
[1735122768631,0.25849757,711.92,710.81,1.039]
[1735122768830,0.25849757,711.91,710.81,1.039]
[1735122769132,0.25849757,711.9,710.81,1.039]
[1735122769433,0.25851319,711.89,710.81,1.039]
[1735122769626,0.25851319,711.95,710.81,1.039]
[1735122769833,0.25851319,711.94,710.81,1.039]
[1735122770127,0.25851319,711.93,710.81,1.039]
[1735122770433,0.25851319,711.92,710.81,1.039]
[1735122770628,0.25851319,711.91,710.81,1.039]
[1735122770830,0.25851319,711.9,710.81,1.039]
[1735122771029,0.25851319,711.89,710.81,1.039]
[1735122771334,0.25851319,711.88,710.81,1.039]
[1735122771527,0.25851319,711.87,710.81,1.039]
[1735122771731,0.25851319,711.86,710.81,1.039]
[1735122771926,0.25851319,711.95,710.81,1.039]
[1735122772137,0.25851319,711.94,710.81,1.039]
[1735122772433,0.25851319,711.93,710.81,1.039]
[1735122772627,0.25851319,711.92,710.81,1.039]
[1735122772934,0.25851319,711.91,710.81,1.039]
[1735122773232,0.25851319,711.9,710.81,1.039]
[1735122773433,0.25851319,711.89,710.81,1.039]
[1735122773627,1.118,711.96,710.81,1.039]
[1735122773628,0.25851319,711.88,710.81,1.039]
[1735122773830,0.25851319,711.87,710.81,1.039]
[1735122774027,0.25851319,711.86,710.81,1.039]
[1735122774329,1.118,711.96,710.81,1.039]
[1735122774330,0.25851319,711.85,710.81,1.039]
[1735122774531,1.118,711.96,710.81,1.039]
[1735122774731,0.25857577,711.95,710.81,1.039]
[1735122775330,1.118,711.96,710.81,1.039]
[1735122775527,0.25858489,711.95,710.81,1.039]
[1735122777534,0.28092649,711.93,710.81,1.039]
[1735122777734,0.25856337,711.92,710.81,1.039]
[1735122779836,1.09756337,711.92,710.81,1.039]
[1735122780033,0.25856337,711.91,710.81,1.039]
[1735122780237,0.25857619,711.9,710.81,1.039]
[1735122780437,0.25857619,711.89,710.81,1.039]
[1735122780639,0.25857619,711.88,710.81,1.039]
[1735122780833,0.25857619,711.87,710.81,1.039]
[1735122781034,0.25857619,711.86,710.81,1.039]
[1735122781236,0.839,711.92,710.81,1.039]
[1735122781237,0.25857619,711.85,710.81,1.039]
[1735122781432,0.25857619,711.84,710.81,1.039]
[1735122781635,0.25857619,711.83,710.81,1.039]
[1735122781835,0.25857619,711.82,710.81,1.039]
[1735122782035,0.839,711.92,710.81,1.039]
[1735122782232,0.25851046,711.91,710.81,1.039]
[1735122782638,0.2584881,711.9,710.81,1.039]
[1735122782838,0.2584881,711.91,710.81,1.039]
[1735122783036,0.839,711.92,710.81,1.039]
[1735122788038,0.25847979,711.91,710.81,1.039]
[1735122788437,0.839,711.92,710.81,1.039]
[1735122788639,0.25848038,711.91,710.81,1.039]
[1735122790442,0.25847767,711.9,710.81,1.039]
[1735122790643,0.94,711.91,710.81,1.039]
[1735122790843,0.25846425,711.9,710.81,1.039]
[1735122792543,0.94,711.91,710.81,1.039]
[1735122796841,1.921,711.91,710.81,1.039]
[1735122800747,0.28093833,711.9,710.81,1.039]
[1735122803442,0.25851081,711.89,710.81,1.039]
[1735122803847,0.25854816,711.88,710.81,1.039]
[1735122804048,0.28093833,711.9,710.81,1.039]
[1735122804049,0.25854816,711.87,710.81,1.039]
[1735122804250,0.25854816,711.86,710.81,1.039]
[1735122804550,0.28093833,711.9,710.81,1.039]
[1735122804750,0.25858547,711.89,710.81,1.039]
[1735122806644,0.2586019,711.88,710.81,1.039]
[1735122809251,0.25865348,711.87,710.81,1.039]
[1735122809447,0.25865348,711.86,710.81,1.039]
[1735122809652,1.061,711.89,710.81,1.039]
[1735122809653,0.25865348,711.85,710.81,1.039]
[1735122809847,0.25865348,711.84,710.81,1.039]
[1735122810049,0.25865348,711.83,710.81,1.039]
[1735122810243,0.25865348,711.82,710.81,1.039]
[1735122810449,0.25865348,711.81,710.81,1.039]
[1735122810651,0.25865348,711.8,710.81,1.039]
[1735122810854,0.25865348,711.79,710.81,1.039]
[1735122811152,1.061,711.89,710.81,1.039]
[1735122811153,0.25865348,711.78,710.81,1.039]
[1735122811347,0.25865348,711.77,710.81,1.039]
[1735122811553,0.25865348,711.76,710.81,1.039]
[1735122811753,0.25865348,711.88,710.81,1.039]
[1735122811949,0.25865348,711.87,710.81,1.039]
[1735122812150,0.25865348,711.86,710.81,1.039]
[1735122812351,0.25865348,711.85,710.81,1.039]
[1735122812548,0.25865348,711.84,710.81,1.039]
[1735122812752,0.25865348,711.83,710.81,1.039]
[1735122812952,0.25865348,711.82,710.81,1.039]
[1735122813152,0.25865348,711.81,710.81,1.039]
[1735122813354,0.25865348,711.8,710.81,1.039]
[1735122813555,0.25865348,711.79,710.81,1.039]
[1735122813750,0.25865348,711.78,710.81,1.039]
[1735122814055,0.25865348,711.77,710.81,1.039]
[1735122814256,0.25865348,711.76,710.81,1.039]
[1735122814456,0.25865348,711.75,710.81,1.039]
[1735122814657,0.25864898,711.74,710.81,1.039]
[1735122814852,0.25864898,711.88,710.81,1.039]
[1735122815055,0.25864898,711.87,710.81,1.039]
[1735122815359,0.25864898,711.86,710.81,1.039]
[1735122815554,0.25864898,711.85,710.81,1.039]
[1735122815755,0.25864898,711.84,710.81,1.039]
[1735122815961,0.25864898,711.83,710.81,1.039]
[1735122816263,0.25864898,711.82,710.81,1.039]
[1735122816462,0.25864898,711.81,710.81,1.039]
[1735122816659,0.25864898,711.8,710.81,1.039]
[1735122816861,1.061,711.89,710.81,1.039]
[1735122816862,0.25864898,711.79,710.81,1.039]
[1735122817055,0.25864898,711.78,710.81,1.039]
[1735122817256,0.25865191,711.77,710.81,1.039]
[1735122817457,0.25865191,711.88,710.81,1.039]
[1735122817660,0.25865191,711.87,710.81,1.039]
[1735122817858,0.25865191,711.86,710.81,1.039]
[1735122818054,0.25865191,711.85,710.81,1.039]
[1735122818256,0.25865191,711.84,710.81,1.039]
[1735122818561,0.25865191,711.83,710.81,1.039]
[1735122818763,0.25865191,711.82,710.81,1.039]
[1735122818962,0.25865191,711.81,710.81,1.039]
[1735122819155,0.25865191,711.8,710.81,1.039]
[1735122819356,0.25865191,711.79,710.81,1.039]
[1735122819557,0.25865191,711.78,710.81,1.039]
[1735122819760,0.25865191,711.77,710.81,1.039]
[1735122820064,0.25866112,711.76,710.81,1.039]
[1735122820364,0.25866112,711.75,710.81,1.039]
[1735122820557,0.25866112,711.74,710.81,1.039]
[1735122820757,0.25866112,711.88,710.81,1.039]
[1735122821063,0.25866112,711.87,710.81,1.039]
[1735122821359,0.25866112,711.86,710.81,1.039]
[1735122821564,0.25866112,711.85,710.81,1.039]
[1735122821757,0.25866112,711.84,710.81,1.039]
[1735122821957,0.25866112,711.83,710.81,1.039]
[1735122822761,0.25864727,711.82,710.81,1.039]
[1735122822962,0.25864727,711.81,710.81,1.039]
[1735122823161,0.25864727,711.8,710.81,1.039]
[1735122823358,0.25864727,711.79,710.81,1.039]
[1735122823562,0.25864727,711.78,710.81,1.039]
[1735122823857,0.28099359,711.76,710.81,1.039]
[1735122824064,0.25863957,711.75,710.81,1.039]
[1735122824666,0.25863957,711.74,710.81,1.039]
[1735122824962,0.25863957,711.73,710.81,1.039]
[1735122825167,0.25863957,711.72,710.81,1.039]
[1735122825361,0.25863957,711.71,710.81,1.039]
[1735122825567,0.25863957,711.7,710.81,1.039]
[1735122825765,0.25863957,711.69,710.81,1.039]
[1735122825961,0.25863957,711.68,710.81,1.039]
[1735122826166,0.25863957,711.67,710.81,1.039]
[1735122826465,0.25863957,711.66,710.81,1.039]
[1735122826665,0.25863957,711.65,710.81,1.039]
[1735122826865,0.25863957,711.64,710.81,1.039]
[1735122827059,0.25863957,711.63,710.81,1.039]
[1735122827263,0.25863957,711.62,710.81,1.039]
[1735122827465,0.28099359,711.76,710.81,1.039]
[1735122827661,0.25859329,711.75,710.81,1.039]
[1735122828165,1.19999359,711.76,710.81,1.039]
[1735122828368,0.25859213,711.75,710.81,1.039]
[1735122828965,1.19999359,711.76,710.81,1.039]
[1735122829165,0.25857249,711.75,710.81,1.039]
[1735122831166,0.25857303,711.74,710.81,1.039]
[1735122831362,1.19999359,711.76,710.81,1.039]
[1735122831363,0.25857303,711.73,710.81,1.039]
[1735122831569,0.25857303,711.72,710.81,1.039]
[1735122831867,0.25857303,711.71,710.81,1.039]
[1735122832064,0.25857303,711.7,710.81,1.039]
[1735122832270,0.25857303,711.69,710.81,1.039]
[1735122832464,0.25857303,711.68,710.81,1.039]
[1735122832669,0.25857303,711.67,710.81,1.039]
[1735122832869,0.25857303,711.66,710.81,1.039]
[1735122833070,0.25857303,711.65,710.81,1.039]
[1735122833371,0.25857303,711.64,710.81,1.039]
[1735122833566,1.19999359,711.76,710.81,1.039]
[1735122833768,0.25857175,711.75,710.81,1.039]
[1735122835771,0.28100543,711.73,710.81,1.039]
[1735122835965,0.25857175,711.72,710.81,1.039]
[1735122836363,0.25859749,711.71,710.81,1.039]
[1735122836563,0.25859749,711.7,710.81,1.039]
[1735122836769,0.25859749,711.69,710.81,1.039]
[1735122836965,0.25859749,711.68,710.81,1.039]
[1735122837164,0.25859904,711.67,710.81,1.039]
[1735122837369,0.25859904,711.66,710.81,1.039]
[1735122837565,0.28100543,711.73,710.81,1.039]
[1735122837566,0.25859904,711.65,710.81,1.039]
[1735122837771,0.25859904,711.64,710.81,1.039]
[1735122837976,0.25859904,711.63,710.81,1.039]
[1735122838271,0.25859904,711.62,710.81,1.039]
[1735122838471,0.25859904,711.61,710.81,1.039]
[1735122838670,0.25859904,711.6,710.81,1.039]
[1735122838972,0.25859904,711.59,710.81,1.039]
[1735122839171,0.25859904,711.72,710.81,1.039]
[1735122839373,0.25859904,711.71,710.81,1.039]
[1735122839567,0.25859904,711.7,710.81,1.039]
[1735122839768,0.28100543,711.73,710.81,1.039]
[1735122839769,0.25859904,711.69,710.81,1.039]
[1735122839966,0.25859904,711.68,710.81,1.039]
[1735122840166,0.25859904,711.67,710.81,1.039]
[1735122840367,0.25859904,711.66,710.81,1.039]
[1735122840571,0.25859904,711.65,710.81,1.039]
[1735122840871,0.25859904,711.64,710.81,1.039]
[1735122841075,0.25859904,711.63,710.81,1.039]
[1735122841270,0.25857399,711.72,710.81,1.039]
[1735122841471,0.25857399,711.71,710.81,1.039]
[1735122841672,0.25857399,711.7,710.81,1.039]
[1735122841873,0.25857399,711.69,710.81,1.039]
[1735122842174,0.25857399,711.68,710.81,1.039]
[1735122842373,0.25857399,711.67,710.81,1.039]
[1735122842575,0.28100543,711.73,710.81,1.039]
[1735122842576,0.25857399,711.66,710.81,1.039]
[1735122842771,0.25857399,711.65,710.81,1.039]
[1735122842974,0.25857399,711.64,710.81,1.039]
[1735122843175,0.25857399,711.63,710.81,1.039]
[1735122843375,0.25857399,711.62,710.81,1.039]
[1735122843572,0.25857399,711.72,710.81,1.039]
[1735122843776,0.25860082,711.71,710.81,1.039]
[1735122843974,0.25860082,711.7,710.81,1.039]
[1735122844175,0.25859978,711.69,710.81,1.039]
[1735122844386,0.28100543,711.73,710.81,1.039]
[1735122844573,0.25859306,711.72,710.81,1.039]
[1735122846385,0.28100543,711.73,710.81,1.039]
[1735122846584,0.25862983,711.72,710.81,1.039]
[1735122848285,1.18062983,711.72,710.81,1.039]
[1735122848486,0.25862983,711.71,710.81,1.039]
[1735122851187,0.28102123,711.69,710.81,1.039]
[1735122851488,0.25862983,711.68,710.81,1.039]
[1735122851683,0.25869188,711.67,710.81,1.039]
[1735122851988,0.28102123,711.69,710.81,1.039]
[1735122851989,0.25869188,711.66,710.81,1.039]
[1735122852292,0.28102123,711.69,710.81,1.039]
[1735122852293,0.25869188,711.65,710.81,1.039]
[1735122852587,0.25868527,711.64,710.81,1.039]
[1735122852791,0.25868527,711.63,710.81,1.039]
[1735122852991,0.25868527,711.62,710.81,1.039]
[1735122853192,0.25868527,711.61,710.81,1.039]
[1735122853388,0.25868527,711.6,710.81,1.039]
[1735122853689,0.25868527,711.59,710.81,1.039]
[1735122853890,0.25868527,711.58,710.81,1.039]
[1735122854085,0.25868527,711.57,710.81,1.039]
[1735122854291,0.25868527,711.56,710.81,1.039]
[1735122854591,0.25868303,711.55,710.81,1.039]
[1735122854786,0.25868303,711.54,710.81,1.039]
[1735122854987,0.25868303,711.53,710.81,1.039]
[1735122855187,0.25868303,711.52,710.81,1.039]
[1735122855391,0.25868303,711.51,710.81,1.039]
[1735122855591,0.25868303,711.5,710.81,1.039]
[1735122855791,0.25868303,711.68,710.81,1.039]
[1735122855984,0.25868303,711.67,710.81,1.039]
[1735122856185,0.25868303,711.66,710.81,1.039]
[1735122856389,0.25868303,711.65,710.81,1.039]
[1735122856688,0.25868303,711.64,710.81,1.039]
[1735122856885,0.25868303,711.63,710.81,1.039]
[1735122857084,0.25868303,711.62,710.81,1.039]
[1735122857289,0.25868303,711.61,710.81,1.039]
[1735122857489,0.25868303,711.6,710.81,1.039]
[1735122857690,0.25868303,711.59,710.81,1.039]
[1735122857993,0.25868303,711.58,710.81,1.039]
[1735122859997,0.25872224,711.57,710.81,1.039]
[1735122860294,0.25872224,711.56,710.81,1.039]
[1735122860492,0.25872224,711.55,710.81,1.039]
[1735122860689,1.044,711.59,710.81,1.039]
[1735122860889,0.25872819,711.58,710.81,1.039]
[1735122861395,0.25872819,711.58,710.81,1e-08]
[1735122862598,1.044,711.59,710.81,1e-08]
[1735122862798,0.25876401,711.58,710.81,1e-08]
[1735122864497,1.28876401,711.58,710.81,1e-08]
[1735122864700,0.25876401,711.57,710.81,1e-08]
[1735122865301,1.03,711.58,710.81,1e-08]
[1735122865501,0.25876928,711.57,710.81,1e-08]
[1735122867310,0.25876928,711.56,710.81,1e-08]
[1735122867610,0.25876928,711.55,710.81,1e-08]
[1735122867806,0.25876928,711.54,710.81,1e-08]
[1735122868004,0.25876543,711.53,710.81,1e-08]
[1735122868210,0.25876543,711.57,710.81,1e-08]
[1735122868409,0.25876543,711.56,710.81,1e-08]
[1735122868610,0.25876543,711.55,710.81,1e-08]
[1735122868810,0.25876937,711.54,710.81,1e-08]
[1735122869010,0.25876937,711.53,710.81,1e-08]
[1735122869210,0.25876937,711.52,710.81,1e-08]
[1735122869412,0.25876937,711.51,710.81,1e-08]
[1735122869607,0.25876937,711.5,710.81,1e-08]
[1735122869812,0.25876937,711.49,710.81,1e-08]
[1735122870008,0.25876937,711.48,710.81,1e-08]
[1735122870209,0.25876937,711.47,710.81,1e-08]
[1735122870408,0.25876937,711.46,710.81,1e-08]
[1735122870721,1.03,711.58,710.81,1e-08]
[1735122870912,0.25879342,711.57,710.81,1e-08]
[1735122872116,1.22679342,711.57,710.81,1e-08]
[1735122872309,0.25879342,711.56,710.81,1e-08]
[1735122873409,0.968,711.57,710.81,1e-08]
[1735122873613,0.2588353,711.56,710.81,1e-08]
[1735122876116,0.968,711.57,710.81,1e-08]
[1735122876310,0.25880348,711.56,710.81,1e-08]
[1735122877016,0.25882898,711.55,710.81,1e-08]
[1735122877215,0.25882898,711.54,710.81,1e-08]
[1735122877410,0.25882898,711.53,710.81,1e-08]
[1735122877609,0.25882898,711.52,710.81,1e-08]
[1735122877819,0.25882898,711.51,710.81,1e-08]
[1735122878016,0.25882898,711.5,710.81,1e-08]
[1735122878218,0.25882898,711.49,710.81,1e-08]
[1735122878417,0.25882898,711.48,710.81,1e-08]
[1735122878615,0.25882898,711.47,710.81,1e-08]
[1735122878815,0.968,711.57,710.81,1e-08]
[1735122879012,0.25881924,711.56,710.81,1e-08]
[1735122879313,0.968,711.57,710.81,1e-08]
[1735122879314,0.25881924,711.55,710.81,1e-08]
[1735122879514,0.25881924,711.54,710.81,1e-08]
[1735122879715,0.25881924,711.53,710.81,1e-08]
[1735122879917,0.25881924,711.52,710.81,1e-08]
[1735122880117,0.25881924,711.51,710.81,1e-08]
[1735122880411,0.25881924,711.5,710.81,1e-08]
[1735122880615,0.25881924,711.49,710.81,1e-08]
[1735122880915,0.25881924,711.48,710.81,1e-08]
[1735122881216,0.968,711.57,710.81,1e-08]
[1735122881217,0.25881924,711.47,710.81,1e-08]
[1735122881430,0.25881924,711.46,710.81,1e-08]
[1735122881616,0.25886456,711.45,710.81,1e-08]
[1735122881816,0.25886456,711.44,710.81,1e-08]
[1735122882012,0.25886456,711.43,710.81,1e-08]
[1735122882218,0.25886456,711.42,710.81,1e-08]
[1735122882516,0.25886456,711.41,710.81,1e-08]
[1735122882714,0.25886456,711.4,710.81,1e-08]
[1735122882915,0.25886456,711.39,710.81,1e-08]
[1735122883111,0.25886456,711.38,710.81,1e-08]
[1735122883315,0.25886456,711.37,710.81,1e-08]
[1735122883512,0.968,711.57,710.81,1e-08]
[1735122883513,0.25886456,711.36,710.81,1e-08]
[1735122883712,0.25886456,711.35,710.81,1e-08]
[1735122883911,0.25886456,711.34,710.81,1e-08]
[1735122884114,0.968,711.57,710.81,1e-08]
[1735122884417,0.25888348,711.56,710.81,1e-08]
[1735122884622,0.25888348,711.55,710.81,1e-08]
[1735122884814,0.25888348,711.54,709.19,1.03003003]
[1735122885018,0.25888348,711.53,709.19,1.03003003]
[1735122885318,0.25888348,711.52,709.19,1.03003003]
[1735122885519,0.25888348,711.51,709.19,1.03003003]
[1735122885714,0.25888348,711.5,709.19,1.03003003]
[1735122886021,1.30585647,711.49,709.24,1.03003003]
[1735122886216,0.25888348,711.48,709.24,1.03003003]
[1735122886417,0.25888348,711.47,709.24,1.03003003]
[1735122886618,0.25888348,711.46,709.24,1.03003003]
[1735122886815,0.25888348,711.45,709.24,1.03003003]
[1735122887014,0.25888348,711.44,709.24,1.03003003]
[1735122887219,0.25888348,711.43,709.24,1.03003003]
[1735122887420,1.04697299,711.41,709.2,0.899]
[1735122887617,0.25888348,711.4,709.2,0.899]
[1735122887816,0.25888348,711.39,709.2,0.899]
[1735122888017,1.04697299,711.41,709.2,0.899]
[1735122888018,0.25888348,711.38,709.2,0.899]
[1735122888219,0.25888348,711.37,709.2,0.899]
[1735122888418,0.25888348,711.36,709.2,0.899]
[1735122888619,0.25888348,711.35,709.2,0.899]
[1735122888823,0.25888348,711.34,709.2,0.899]
[1735122889021,0.25888348,711.33,709.2,0.899]
[1735122889321,0.25888348,711.32,709.2,0.899]
[1735122889523,0.25888348,711.31,709.2,0.899]
[1735122889721,1.04697299,711.43,709.2,0.899]
[1735122889922,0.25895913,711.42,709.2,0.899]
[1735122890117,1.04697299,711.43,709.2,0.899]
[1735122890118,0.25895913,711.41,709.2,0.899]
[1735122890318,0.25895913,711.4,709.2,0.899]
[1735122890521,0.25895913,711.39,709.2,0.899]
[1735122890822,0.25895913,711.38,709.2,0.899]
[1735122891020,0.25895913,711.37,709.2,0.899]
[1735122891220,0.25895913,711.36,709.2,0.899]
[1735122891423,0.25895913,711.35,709.2,0.899]
[1735122891622,0.25895913,711.34,709.2,0.899]
[1735122891823,0.25895913,711.33,709.2,0.899]
[1735122892023,0.25895913,711.32,709.2,0.899]
[1735122892327,1.01,711.37,709.2,0.899]
[1735122892328,0.25895913,711.31,709.2,0.899]
[1735122892622,0.25895913,711.3,709.2,0.899]
[1735122892824,0.25895913,711.29,709.2,0.899]
[1735122893022,0.25895913,711.28,709.2,0.899]
[1735122893216,0.51792757,711.27,709.2,0.899]
[1735122893419,0.25896844,711.26,709.2,0.899]
[1735122893623,0.25896844,711.25,709.2,0.899]
[1735122893923,0.25896844,711.24,709.2,0.899]
[1735122894116,0.25896844,711.23,709.2,0.899]
[1735122894321,0.25896844,711.22,709.2,0.899]
[1735122894522,0.25896844,711.21,709.2,0.899]
[1735122894722,0.25896844,711.2,709.2,0.899]
[1735122894922,0.25896844,711.19,709.2,0.899]
[1735122895124,1.01,711.37,709.2,0.899]
[1735122895325,0.25899188,711.36,709.2,0.899]
[1735122895526,0.25899188,711.35,709.2,0.899]
[1735122895720,0.25899188,711.34,709.2,0.899]
[1735122895922,0.25899188,711.33,709.2,0.899]
[1735122896125,0.25899188,711.32,709.2,0.899]
[1735122896326,0.25899188,711.31,709.2,0.899]
[1735122896526,0.25899188,711.3,709.2,0.899]
[1735122896726,0.25899188,711.29,709.2,0.899]
[1735122896927,0.25899188,711.28,708.83,1.03003003]
[1735122897128,0.25899188,711.27,708.84,0.28215112]
[1735122897325,0.25899188,711.26,708.84,0.28215112]
[1735122897529,0.25899188,711.25,708.84,0.28215112]
[1735122897727,0.25899188,711.24,708.84,0.28215112]
[1735122897928,0.25899188,711.23,708.84,0.28215112]
[1735122898128,0.25899188,711.22,708.85,0.899]
[1735122898323,0.25899188,711.21,708.85,0.899]
[1735122898528,0.25899188,711.2,708.85,0.899]
[1735122898731,0.25899188,711.19,708.85,0.899]
[1735122899028,0.25899188,711.18,708.85,0.899]
[1735122899224,0.25899188,711.17,708.85,1.92903003]
[1735122899427,0.25899188,711.16,708.85,1.92903003]
[1735122899726,0.25899188,711.15,708.85,1.92903003]
[1735122900029,0.25899188,711.14,708.85,1.92903003]